[Event "*** Titled Tuesday Blitz"]
[Site "Chess.com"]
[Date "2021.02.16"]
[Round "6"]
[White "AttractiveMustard"]
[Black "MatyChess1"]
[Result "0-1"]
[WhiteElo "2373"]
[BlackElo "2603"]
[TimeControl "180+1"]
[EndTime "11:08:25 PST"]
[Termination "MatyChess1 won on time"]

1. e4 {[%clk 0:02:59.5]} 1... c5 {[%clk 0:03:00.3]} 2. Nf3 {[%clk 0:02:58.4]}
2... d6 {[%clk 0:03:00.8]} 3. d4 {[%clk 0:02:55.6]} 3... cxd4 {[%clk 0:03:01.7]}
4. Nxd4 {[%clk 0:02:49]} 4... Nf6 {[%clk 0:03:02.2]} 5. Nc3 {[%clk 0:02:47.9]}
5... a6 {[%clk 0:03:02.7]} 6. Be3 {[%clk 0:02:47.3]} 6... e5 {[%clk 0:03:01.8]}
7. Nf3 {[%clk 0:02:46.7]} 7... Be7 {[%clk 0:03:01.6]} 8. Bc4 {[%clk 0:02:46]}
8... O-O {[%clk 0:03:01.7]} 9. O-O {[%clk 0:02:46]} 9... Be6 {[%clk 0:02:59.3]}
10. Bxe6 {[%clk 0:02:45.3]} 10... fxe6 {[%clk 0:03:00.2]} 11. Na4 {[%clk
0:02:45.6]} 11... Nc6 {[%clk 0:02:32.8]} 12. Ng5 {[%clk 0:02:28.4]} 12... Qa5
{[%clk 0:01:43.6]} 13. Nb6 {[%clk 0:02:02.8]} 13... Rab8 {[%clk 0:01:41.4]} 14.
Nxe6 {[%clk 0:02:01.3]} 14... Rfe8 {[%clk 0:01:41.8]} 15. Nc7 {[%clk 0:01:56.5]}
15... Red8 {[%clk 0:01:31.2]} 16. Ne6 {[%clk 0:01:34.1]} 16... Re8 {[%clk
0:01:29.4]} 17. Qd3 {[%clk 0:01:00.3]} 17... Bd8 {[%clk 0:01:25.1]} 18. Nc4
{[%clk 0:00:55.3]} 18... Nb4 {[%clk 0:00:54.1]} 19. Nxa5 {[%clk 0:00:35]} 19...
Nxd3 {[%clk 0:00:53.2]} 20. Nxd8 {[%clk 0:00:35.2]} 20... Nxb2 {[%clk 0:00:46]}
21. Ndxb7 {[%clk 0:00:33.6]} 21... Nxe4 {[%clk 0:00:46.6]} 22. Rab1 {[%clk
0:00:32.3]} 22... Na4 {[%clk 0:00:46.9]} 23. Rb4 {[%clk 0:00:24.4]} 23... Nec3
{[%clk 0:00:43.8]} 24. Bd2 {[%clk 0:00:09.5]} 24... d5 {[%clk 0:00:37.9]} 25. a3
{[%clk 0:00:09.1]} 25... Rec8 {[%clk 0:00:26.7]} 26. Re1 {[%clk 0:00:08.5]}
26... e4 {[%clk 0:00:20.5]} 27. f3 {[%clk 0:00:07.8]} 27... h6 {[%clk
0:00:10.4]} 28. Bxc3 {[%clk 0:00:06.5]} 28... Nxc3 {[%clk 0:00:09.9]} 29. fxe4
{[%clk 0:00:06.5]} 29... Nxe4 {[%clk 0:00:10.8]} 30. Re2 {[%clk 0:00:05]} 30...
Rc3 {[%clk 0:00:11.1]} 31. Rb3 {[%clk 0:00:03.7]} 31... Rc7 {[%clk 0:00:10.2]}
32. Ree3 {[%clk 0:00:02.6]} 32... Nd2 {[%clk 0:00:09.5]} 33. Rbd3 {[%clk
0:00:02]} 33... Nc4 {[%clk 0:00:07.4]} 34. Nxc4 {[%clk 0:00:01.1]} 34... dxc4
{[%clk 0:00:08.3]} 0-1

[Event "*** Titled Tuesday Blitz"]
[Site "Chess.com"]
[Date "2021.02.16"]
[Round "6"]
[White "BikingBrian"]
[Black "kleopl"]
[Result "0-1"]
[WhiteElo "2317"]
[BlackElo "2467"]
[TimeControl "180+1"]
[EndTime "11:08:25 PST"]
[Termination "kleopl won by resignation"]

1. d4 {[%clk 0:03:00.9]} 1... f5 {[%clk 0:02:59]} 2. Nc3 {[%clk 0:02:57.4]} 2...
Nf6 {[%clk 0:02:58.1]} 3. Bg5 {[%clk 0:02:57]} 3... d5 {[%clk 0:02:58.7]} 4. e3
{[%clk 0:02:56.1]} 4... Ne4 {[%clk 0:02:54.2]} 5. Nf3 {[%clk 0:02:49.5]} 5... c6
{[%clk 0:02:52.6]} 6. Bd3 {[%clk 0:02:46.8]} 6... g6 {[%clk 0:02:49.9]} 7. h4
{[%clk 0:02:40.5]} 7... h6 {[%clk 0:02:49.7]} 8. Bf4 {[%clk 0:02:40.2]} 8... Bg7
{[%clk 0:02:49.2]} 9. Be5 {[%clk 0:02:32.6]} 9... Nf6 {[%clk 0:02:45]} 10. Ne2
{[%clk 0:02:28]} 10... e6 {[%clk 0:02:44]} 11. c4 {[%clk 0:02:26.9]} 11... Nbd7
{[%clk 0:02:39.9]} 12. Bd6 {[%clk 0:02:20]} 12... dxc4 {[%clk 0:02:31.7]} 13.
Bxc4 {[%clk 0:02:15.8]} 13... Nb6 {[%clk 0:02:31.1]} 14. Bxe6 {[%clk 0:01:50.2]}
14... Qxd6 {[%clk 0:02:24.2]} 15. Bb3 {[%clk 0:01:48.6]} 15... Be6 {[%clk
0:02:24.1]} 16. Nf4 {[%clk 0:01:45]} 16... Qb4+ {[%clk 0:02:20.3]} 17. Kf1
{[%clk 0:01:40.2]} 17... Bxb3 {[%clk 0:02:16.3]} 18. axb3 {[%clk 0:01:40]} 18...
g5 {[%clk 0:02:07]} 19. Ne6 {[%clk 0:01:27.7]} 19... Qe7 {[%clk 0:02:02.1]} 20.
hxg5 {[%clk 0:01:16.3]} 20... Qxe6 {[%clk 0:02:00.5]} 21. gxf6 {[%clk 0:01:13]}
21... Bxf6 {[%clk 0:01:59.9]} 22. Ne5 {[%clk 0:01:11.7]} 22... Bxe5 {[%clk
0:01:57.1]} 23. dxe5 {[%clk 0:01:04.9]} 23... Nd5 {[%clk 0:01:48.8]} 24. Qh5+
{[%clk 0:00:54.9]} 24... Qf7 {[%clk 0:01:48.7]} 25. Qh4 {[%clk 0:00:55.1]} 25...
h5 {[%clk 0:01:44.2]} 26. Qd4 {[%clk 0:00:52.2]} 26... b6 {[%clk 0:01:27.3]} 27.
b4 {[%clk 0:00:42.1]} 27... Qe6 {[%clk 0:01:23.2]} 28. e4 {[%clk 0:00:37.3]}
28... fxe4 {[%clk 0:01:21.2]} 29. Qxe4 {[%clk 0:00:38.2]} 29... Ne7 {[%clk
0:01:08.1]} 30. Rd1 {[%clk 0:00:34.1]} 30... Rd8 {[%clk 0:01:03]} 31. Rxd8+
{[%clk 0:00:29.7]} 31... Kxd8 {[%clk 0:01:03.9]} 32. Ke2 {[%clk 0:00:27.9]}
32... Kc7 {[%clk 0:01:01.8]} 33. Rd1 {[%clk 0:00:26.1]} 33... Qg4+ {[%clk
0:00:53.9]} 34. Qxg4 {[%clk 0:00:23]} 34... hxg4 {[%clk 0:00:54.8]} 35. Ke3
{[%clk 0:00:20.5]} 35... Nd5+ {[%clk 0:00:52.8]} 36. Ke4 {[%clk 0:00:19.1]}
36... Rf8 {[%clk 0:00:52]} 37. f3 {[%clk 0:00:17.1]} 37... gxf3 {[%clk
0:00:51.7]} 38. gxf3 {[%clk 0:00:17.3]} 38... Rf4+ {[%clk 0:00:51.7]} 39. Kd3
{[%clk 0:00:17.3]} 39... Nxb4+ {[%clk 0:00:51.5]} 40. Ke3 {[%clk 0:00:16.5]}
40... Rf8 {[%clk 0:00:48.3]} 41. Ke4 {[%clk 0:00:15]} 41... Nd5 {[%clk
0:00:47.4]} 42. b4 {[%clk 0:00:13.4]} 42... Rf4+ {[%clk 0:00:44.7]} 43. Kd3
{[%clk 0:00:13.7]} 43... Nxb4+ {[%clk 0:00:44]} 44. Ke3 {[%clk 0:00:14.2]} 44...
Rf8 {[%clk 0:00:42.9]} 45. f4 {[%clk 0:00:14.2]} 45... Nd5+ {[%clk 0:00:42.9]}
46. Ke4 {[%clk 0:00:14.1]} 46... Rxf4+ {[%clk 0:00:42.1]} 47. Kd3 {[%clk
0:00:14.4]} 47... b5 {[%clk 0:00:37.1]} 48. Rh1 {[%clk 0:00:14.4]} 48... Kb6
{[%clk 0:00:36.6]} 49. e6 {[%clk 0:00:11.8]} 49... Rf6 {[%clk 0:00:28.6]} 50.
Re1 {[%clk 0:00:11.2]} 50... Rxe6 {[%clk 0:00:27.6]} 51. Rxe6 {[%clk 0:00:10.5]}
51... Nf4+ {[%clk 0:00:27.9]} 52. Ke4 {[%clk 0:00:10.5]} 52... Nxe6 {[%clk
0:00:28.8]} 53. Ke5 {[%clk 0:00:11]} 53... a5 {[%clk 0:00:28.8]} 0-1

[Event "*** Titled Tuesday Blitz"]
[Site "Chess.com"]
[Date "2021.02.16"]
[Round "6"]
[White "TC2304"]
[Black "Sadykov_Ramil"]
[Result "0-1"]
[WhiteElo "2346"]
[BlackElo "2558"]
[TimeControl "180+1"]
[EndTime "11:08:28 PST"]
[Termination "Sadykov_Ramil won by resignation"]

1. d4 {[%clk 0:03:00.9]} 1... d5 {[%clk 0:02:56.3]} 2. c4 {[%clk 0:03:01]} 2...
e6 {[%clk 0:02:55.8]} 3. Nc3 {[%clk 0:03:01.5]} 3... Be7 {[%clk 0:02:54.9]} 4.
cxd5 {[%clk 0:03:01.3]} 4... exd5 {[%clk 0:02:54.1]} 5. Bf4 {[%clk 0:03:02.1]}
5... c6 {[%clk 0:02:53.2]} 6. e3 {[%clk 0:03:02.6]} 6... Nf6 {[%clk 0:02:53.1]}
7. Nf3 {[%clk 0:03:02]} 7... Bf5 {[%clk 0:02:51.2]} 8. h3 {[%clk 0:02:54.4]}
8... Nbd7 {[%clk 0:02:46.1]} 9. Qb3 {[%clk 0:02:45.2]} 9... Qb6 {[%clk
0:02:43.9]} 10. g4 {[%clk 0:02:35.2]} 10... Qxb3 {[%clk 0:02:39]} 11. axb3
{[%clk 0:02:34.8]} 11... Bc2 {[%clk 0:02:39.2]} 12. Nd2 {[%clk 0:02:28.3]} 12...
a5 {[%clk 0:02:34.2]} 13. Be2 {[%clk 0:02:16.4]} 13... Nf8 {[%clk 0:02:18.1]}
14. g5 {[%clk 0:02:11.5]} 14... N6d7 {[%clk 0:02:15.5]} 15. Bd1 {[%clk 0:01:58]}
15... Bxd1 {[%clk 0:02:10.8]} 16. Kxd1 {[%clk 0:01:58.9]} 16... Ne6 {[%clk
0:02:11.1]} 17. Nf3 {[%clk 0:01:47.3]} 17... Nxf4 {[%clk 0:02:01.2]} 18. exf4
{[%clk 0:01:48.2]} 18... h6 {[%clk 0:01:56]} 19. Kd2 {[%clk 0:01:41.5]} 19...
Bd6 {[%clk 0:01:40.1]} 20. Ne5 {[%clk 0:01:15.8]} 20... Bxe5 {[%clk 0:01:35.7]}
21. dxe5 {[%clk 0:01:09.7]} 21... hxg5 {[%clk 0:01:35.5]} 22. fxg5 {[%clk
0:01:10.6]} 22... Rh4 {[%clk 0:01:31.3]} 23. Rae1 {[%clk 0:01:00]} 23... Ke7
{[%clk 0:01:30.8]} 24. Ne2 {[%clk 0:00:55.8]} 24... Rah8 {[%clk 0:01:25.2]} 25.
Ng3 {[%clk 0:00:32.8]} 25... g6 {[%clk 0:01:19.5]} 26. Re3 {[%clk 0:00:22]}
26... Ke6 {[%clk 0:01:14.9]} 27. Ne2 {[%clk 0:00:17.1]} 27... d4 {[%clk
0:01:07.6]} 28. Rf3 {[%clk 0:00:15.2]} 28... Nxe5 {[%clk 0:01:06]} 29. Rf6+
{[%clk 0:00:14.8]} 29... Ke7 {[%clk 0:01:01.3]} 30. Nf4 {[%clk 0:00:15]} 30...
Nf3+ {[%clk 0:00:39.2]} 31. Kd3 {[%clk 0:00:15.2]} 31... Nxg5 {[%clk 0:00:39.6]}
32. Rxg6 {[%clk 0:00:04.9]} 32... fxg6 {[%clk 0:00:36.4]} 33. Nxg6+ {[%clk
0:00:05.8]} 33... Kd6 {[%clk 0:00:32.5]} 34. Nxh8 {[%clk 0:00:04.3]} 34... Rxh8
{[%clk 0:00:32.9]} 35. Kxd4 {[%clk 0:00:04.6]} 35... Rxh3 {[%clk 0:00:28.9]} 36.
Rxh3 {[%clk 0:00:03.7]} 36... Nxh3 {[%clk 0:00:28.6]} 37. f3 {[%clk 0:00:04.4]}
37... b5 {[%clk 0:00:26.1]} 38. Ke4 {[%clk 0:00:04.3]} 38... Ng5+ {[%clk
0:00:24.6]} 39. Kf4 {[%clk 0:00:04]} 39... Ne6+ {[%clk 0:00:19]} 40. Ke4 {[%clk
0:00:04.6]} 40... Kc5 {[%clk 0:00:18.1]} 41. f4 {[%clk 0:00:02.8]} 41... Nxf4
{[%clk 0:00:16.1]} 42. Kxf4 {[%clk 0:00:03.7]} 42... Kb4 {[%clk 0:00:16.5]} 0-1

[Event "*** Titled Tuesday Blitz"]
[Site "Chess.com"]
[Date "2021.02.16"]
[Round "6"]
[White "Neftegor"]
[Black "monalize"]
[Result "0-1"]
[WhiteElo "2570"]
[BlackElo "2388"]
[TimeControl "180+1"]
[EndTime "11:08:29 PST"]
[Termination "monalize won on time"]

1. d4 {[%clk 0:03:00.9]} 1... Nf6 {[%clk 0:02:58.8]} 2. c4 {[%clk 0:03:00.1]}
2... d6 {[%clk 0:02:59]} 3. Nf3 {[%clk 0:02:58.6]} 3... Nbd7 {[%clk 0:02:58.3]}
4. Nc3 {[%clk 0:02:58.5]} 4... g6 {[%clk 0:02:58.2]} 5. e4 {[%clk 0:02:58.4]}
5... Bg7 {[%clk 0:02:57.5]} 6. Be2 {[%clk 0:02:58.6]} 6... O-O {[%clk
0:02:56.9]} 7. O-O {[%clk 0:02:58.6]} 7... c6 {[%clk 0:02:56.8]} 8. Qc2 {[%clk
0:02:58.5]} 8... e5 {[%clk 0:02:56.6]} 9. Rd1 {[%clk 0:02:58.3]} 9... exd4
{[%clk 0:02:54.3]} 10. Nxd4 {[%clk 0:02:57.7]} 10... Qe7 {[%clk 0:02:53.4]} 11.
Bf1 {[%clk 0:02:52]} 11... Re8 {[%clk 0:02:53.2]} 12. f3 {[%clk 0:02:50.7]}
12... a5 {[%clk 0:02:48.4]} 13. Bg5 {[%clk 0:02:40.8]} 13... Ne5 {[%clk
0:02:38.2]} 14. Qd2 {[%clk 0:02:36.3]} 14... Qc7 {[%clk 0:02:36.8]} 15. Rac1
{[%clk 0:02:33]} 15... a4 {[%clk 0:02:36.4]} 16. Be3 {[%clk 0:02:29.9]} 16...
Qa5 {[%clk 0:02:33.3]} 17. Qc2 {[%clk 0:02:22.5]} 17... Qb4 {[%clk 0:02:28.3]}
18. a3 {[%clk 0:02:21.4]} 18... Qa5 {[%clk 0:02:27.5]} 19. Qe2 {[%clk
0:01:45.3]} 19... Ned7 {[%clk 0:01:56]} 20. Nc2 {[%clk 0:01:35.2]} 20... Bf8
{[%clk 0:01:54.2]} 21. Bf4 {[%clk 0:01:32.9]} 21... Ne5 {[%clk 0:01:53.6]} 22.
Kh1 {[%clk 0:01:30.6]} 22... Nfd7 {[%clk 0:01:53]} 23. Ne3 {[%clk 0:01:28.2]}
23... Nc5 {[%clk 0:01:52.1]} 24. Rc2 {[%clk 0:01:18.7]} 24... Nb3 {[%clk
0:01:48.6]} 25. Na2 {[%clk 0:01:09.4]} 25... Qc5 {[%clk 0:01:45.3]} 26. Nb4
{[%clk 0:01:07.3]} 26... Nd4 {[%clk 0:01:41.6]} 27. Rxd4 {[%clk 0:00:52.9]}
27... Qxd4 {[%clk 0:01:41.1]} 28. c5 {[%clk 0:00:53.1]} 28... Nd7 {[%clk
0:01:05.6]} 29. cxd6 {[%clk 0:00:47.4]} 29... Qf6 {[%clk 0:01:04.4]} 30. Bg3
{[%clk 0:00:42.4]} 30... Bxd6 {[%clk 0:01:03.6]} 31. Ng4 {[%clk 0:00:42.2]}
31... Qe7 {[%clk 0:01:02.7]} 32. Bf2 {[%clk 0:00:29.6]} 32... Nf8 {[%clk
0:00:57.8]} 33. Nh6+ {[%clk 0:00:28.1]} 33... Kg7 {[%clk 0:00:57.5]} 34. Qd2
{[%clk 0:00:27.8]} 34... f6 {[%clk 0:00:50.3]} 35. h3 {[%clk 0:00:26.5]} 35...
Be6 {[%clk 0:00:49.7]} 36. Ng4 {[%clk 0:00:26.2]} 36... Bb3 {[%clk 0:00:48.5]}
37. Qh6+ {[%clk 0:00:25.4]} 37... Kg8 {[%clk 0:00:47.7]} 38. Rd2 {[%clk
0:00:25.4]} 38... Rad8 {[%clk 0:00:46.2]} 39. Bh4 {[%clk 0:00:24.9]} 39... Nd7
{[%clk 0:00:39.9]} 40. e5 {[%clk 0:00:24.4]} 40... Bxe5 {[%clk 0:00:36.8]} 41.
Re2 {[%clk 0:00:24.3]} 41... Qg7 {[%clk 0:00:35.3]} 42. Qe3 {[%clk 0:00:22.4]}
42... Bf7 {[%clk 0:00:33.4]} 43. Qa7 {[%clk 0:00:20]} 43... c5 {[%clk
0:00:31.1]} 44. Nd3 {[%clk 0:00:18.5]} 44... Bd4 {[%clk 0:00:30.4]} 45. Nf4
{[%clk 0:00:16]} 45... g5 {[%clk 0:00:30.1]} 46. Re7 {[%clk 0:00:13.2]} 46...
Rxe7 {[%clk 0:00:29.4]} 0-1

[Event "*** Titled Tuesday Blitz"]
[Site "Chess.com"]
[Date "2021.02.16"]
[Round "6"]
[White "MariaFominykh"]
[Black "NikolaMa2000"]
[Result "1/2-1/2"]
[WhiteElo "2247"]
[BlackElo "1926"]
[TimeControl "180+1"]
[EndTime "11:08:30 PST"]
[Termination "Game drawn by repetition"]

1. d4 {[%clk 0:03:00.9]} 1... e6 {[%clk 0:02:59.7]} 2. c4 {[%clk 0:03:00.2]}
2... Nf6 {[%clk 0:03:00]} 3. Nc3 {[%clk 0:02:49.7]} 3... Bb4 {[%clk 0:02:59.9]}
4. e3 {[%clk 0:02:48.1]} 4... O-O {[%clk 0:02:59.8]} 5. Bd3 {[%clk 0:02:48]}
5... c5 {[%clk 0:02:59]} 6. Ne2 {[%clk 0:02:47.8]} 6... cxd4 {[%clk 0:02:55.4]}
7. exd4 {[%clk 0:02:45.6]} 7... d5 {[%clk 0:02:55.9]} 8. O-O {[%clk 0:02:42.5]}
8... Nc6 {[%clk 0:02:54.7]} 9. Bg5 {[%clk 0:02:38.1]} 9... h6 {[%clk 0:02:54.2]}
10. Bxf6 {[%clk 0:02:36.5]} 10... Qxf6 {[%clk 0:02:49.6]} 11. cxd5 {[%clk
0:02:36.7]} 11... Bxc3 {[%clk 0:02:42.8]} 12. dxc6 {[%clk 0:02:31]} 12... Bxb2
{[%clk 0:02:37.8]} 13. Rb1 {[%clk 0:02:28]} 13... Ba3 {[%clk 0:02:22.3]} 14.
cxb7 {[%clk 0:02:25.7]} 14... Rb8 {[%clk 0:02:22.7]} 15. bxc8=Q {[%clk
0:02:24.1]} 15... Rfxc8 {[%clk 0:02:23]} 16. Rxb8 {[%clk 0:02:17.4]} 16... Rxb8
{[%clk 0:02:23]} 17. Qa4 {[%clk 0:02:16.5]} 17... Bd6 {[%clk 0:02:17.4]} 18.
Qxa7 {[%clk 0:02:06.4]} 18... Qh4 {[%clk 0:02:17.2]} 19. g3 {[%clk 0:02:01.1]}
19... Qg4 {[%clk 0:02:07.8]} 20. Qd7 {[%clk 0:01:54.2]} 20... Bf8 {[%clk
0:01:53.3]} 21. Rc1 {[%clk 0:01:39.5]} 21... Qf3 {[%clk 0:01:50.9]} 22. Bb5
{[%clk 0:01:20]} 22... Ra8 {[%clk 0:01:42.7]} 23. a4 {[%clk 0:01:16.8]} 23...
Qa3 {[%clk 0:01:35.6]} 24. Rc8 {[%clk 0:01:12.3]} 24... Qa1+ {[%clk 0:01:14.7]}
25. Kg2 {[%clk 0:01:10.7]} 25... Rxc8 {[%clk 0:01:07.7]} 26. Qxc8 {[%clk
0:01:11.6]} 26... g6 {[%clk 0:01:07.3]} 27. Qc3 {[%clk 0:01:05.9]} 27... Qa2
{[%clk 0:01:02.4]} 28. a5 {[%clk 0:01:02.4]} 28... Qd5+ {[%clk 0:01:01.7]} 29.
f3 {[%clk 0:00:39.3]} 29... Qxb5 {[%clk 0:01:01.5]} 30. Nf4 {[%clk 0:00:35.1]}
30... Bb4 {[%clk 0:00:32.5]} 31. Qc8+ {[%clk 0:00:32.8]} 31... Kg7 {[%clk
0:00:31.8]} 32. a6 {[%clk 0:00:32.6]} 32... Bd6 {[%clk 0:00:20.9]} 33. Qb7
{[%clk 0:00:19.5]} 33... Qa4 {[%clk 0:00:14.8]} 34. a7 {[%clk 0:00:07.4]} 34...
Qc2+ {[%clk 0:00:14.8]} 35. Kf1 {[%clk 0:00:06.2]} 35... Qd1+ {[%clk 0:00:13.2]}
36. Kg2 {[%clk 0:00:05.5]} 36... Qc2+ {[%clk 0:00:11.4]} 37. Kh3 {[%clk
0:00:05.4]} 37... Qf5+ {[%clk 0:00:10.2]} 38. Kg2 {[%clk 0:00:05.5]} 38... Qc2+
{[%clk 0:00:09.9]} 1/2-1/2

[Event "*** Titled Tuesday Blitz"]
[Site "Chess.com"]
[Date "2021.02.16"]
[Round "6"]
[White "Zkid"]
[Black "Indianlad"]
[Result "1-0"]
[WhiteElo "2828"]
[BlackElo "2920"]
[TimeControl "180+1"]
[EndTime "11:08:31 PST"]
[Termination "Zkid won by resignation"]

1. e4 {[%clk 0:03:00.9]} 1... c6 {[%clk 0:02:58.9]} 2. d4 {[%clk 0:03:00.6]}
2... d5 {[%clk 0:02:58.9]} 3. exd5 {[%clk 0:03:01.5]} 3... cxd5 {[%clk
0:02:59.1]} 4. Bd3 {[%clk 0:03:02.1]} 4... Nf6 {[%clk 0:02:59.2]} 5. c3 {[%clk
0:03:01.6]} 5... Bg4 {[%clk 0:02:59.2]} 6. Qb3 {[%clk 0:03:01.2]} 6... Qc8
{[%clk 0:02:59.5]} 7. Bf4 {[%clk 0:02:57.1]} 7... e6 {[%clk 0:02:56.8]} 8. Nd2
{[%clk 0:02:56]} 8... Nc6 {[%clk 0:02:56.1]} 9. Ngf3 {[%clk 0:02:54.8]} 9... Be7
{[%clk 0:02:56.6]} 10. O-O {[%clk 0:02:52.3]} 10... Bh5 {[%clk 0:02:56.9]} 11.
Ne5 {[%clk 0:02:42.6]} 11... Bg6 {[%clk 0:02:56.2]} 12. Nxg6 {[%clk 0:02:39.7]}
12... hxg6 {[%clk 0:02:57.1]} 13. Nf3 {[%clk 0:02:38.1]} 13... O-O {[%clk
0:02:49.5]} 14. Rfe1 {[%clk 0:02:25.2]} 14... Rd8 {[%clk 0:02:48.8]} 15. Qc2
{[%clk 0:02:17.7]} 15... Bd6 {[%clk 0:02:47.8]} 16. Bg5 {[%clk 0:02:05.1]} 16...
Qc7 {[%clk 0:02:47.1]} 17. Qe2 {[%clk 0:02:02.4]} 17... Bf4 {[%clk 0:02:42.6]}
18. g3 {[%clk 0:01:52.8]} 18... Bxg5 {[%clk 0:02:41.3]} 19. Nxg5 {[%clk
0:01:53.7]} 19... Re8 {[%clk 0:02:34.1]} 20. f4 {[%clk 0:01:52.6]} 20... a6
{[%clk 0:02:34]} 21. a4 {[%clk 0:01:51.1]} 21... Rab8 {[%clk 0:02:34]} 22. Kg2
{[%clk 0:01:40]} 22... Na5 {[%clk 0:02:30.1]} 23. h4 {[%clk 0:01:36.6]} 23...
Nc4 {[%clk 0:02:30]} 24. Rh1 {[%clk 0:01:17.1]} 24... b5 {[%clk 0:02:26.2]} 25.
axb5 {[%clk 0:01:15.8]} 25... axb5 {[%clk 0:02:26.1]} 26. h5 {[%clk 0:00:48.7]}
26... gxh5 {[%clk 0:02:24.2]} 27. Rxh5 {[%clk 0:00:45.8]} 27... Kf8 {[%clk
0:02:03]} 28. Rh8+ {[%clk 0:00:34.9]} 28... Ke7 {[%clk 0:02:02.3]} 29. Rxe8+
{[%clk 0:00:34.1]} 29... Rxe8 {[%clk 0:02:02.4]} 30. f5 {[%clk 0:00:32.3]} 30...
Qb6 {[%clk 0:01:35.5]} 31. fxe6 {[%clk 0:00:24.5]} 31... fxe6 {[%clk 0:01:36.4]}
32. Bf5 {[%clk 0:00:21.5]} 32... Kd7 {[%clk 0:01:29.7]} 33. Nxe6 {[%clk
0:00:16.3]} 33... Rxe6 {[%clk 0:01:28.9]} 34. Qxe6+ {[%clk 0:00:15.7]} 34...
Qxe6 {[%clk 0:01:25.8]} 35. Ra7+ {[%clk 0:00:16.2]} 35... Kd6 {[%clk 0:01:23.9]}
36. Ra6+ {[%clk 0:00:16.4]} 36... Kc7 {[%clk 0:01:24.6]} 37. Rxe6 {[%clk
0:00:15.7]} 37... Nxb2 {[%clk 0:01:24.7]} 38. Re7+ {[%clk 0:00:16]} 38... Kd6
{[%clk 0:01:23.1]} 39. Rxg7 {[%clk 0:00:16.4]} 39... Nd1 {[%clk 0:01:23.5]} 40.
Rf7 {[%clk 0:00:15.5]} 40... Ne4 {[%clk 0:01:18.1]} 41. Bxe4 {[%clk 0:00:14]}
41... dxe4 {[%clk 0:01:19]} 42. g4 {[%clk 0:00:14.5]} 42... Nxc3 {[%clk
0:01:14.9]} 43. g5 {[%clk 0:00:14]} 43... Ke6 {[%clk 0:01:08.7]} 44. g6 {[%clk
0:00:12.2]} 44... Nd5 {[%clk 0:01:09.3]} 45. Rb7 {[%clk 0:00:11.8]} 45... Nf4+
{[%clk 0:01:06.4]} 46. Kg3 {[%clk 0:00:10.4]} 46... Nxg6 {[%clk 0:01:07]} 47.
Rxb5 {[%clk 0:00:10.9]} 47... Kf6 {[%clk 0:00:55.3]} 48. Kg4 {[%clk 0:00:10.2]}
48... Ke6 {[%clk 0:00:29]} 49. Rb6+ {[%clk 0:00:09.5]} 49... Kf7 {[%clk
0:00:29.3]} 50. Kf5 {[%clk 0:00:09.4]} 50... Ne7+ {[%clk 0:00:26.1]} 51. Kxe4
{[%clk 0:00:09.7]} 51... Ke8 {[%clk 0:00:26.5]} 52. Re6 {[%clk 0:00:09.3]} 1-0

[Event "*** Titled Tuesday Blitz"]
[Site "Chess.com"]
[Date "2021.02.16"]
[Round "6"]
[White "Kiborg95"]
[Black "DrVelja"]
[Result "1-0"]
[WhiteElo "2763"]
[BlackElo "2869"]
[TimeControl "180+1"]
[EndTime "11:08:31 PST"]
[Termination "Kiborg95 won by resignation"]

1. d3 {[%clk 0:02:59.8]} 1... Nf6 {[%clk 0:02:59]} 2. Nd2 {[%clk 0:02:58.4]}
2... g6 {[%clk 0:02:57.3]} 3. e4 {[%clk 0:02:58.1]} 3... d6 {[%clk 0:02:57.2]}
4. g3 {[%clk 0:02:57]} 4... Bg7 {[%clk 0:02:57.9]} 5. Bg2 {[%clk 0:02:57.7]}
5... O-O {[%clk 0:02:58.5]} 6. Nh3 {[%clk 0:02:58.4]} 6... c5 {[%clk 0:02:59.3]}
7. O-O {[%clk 0:02:59]} 7... Nc6 {[%clk 0:02:59.9]} 8. f4 {[%clk 0:02:59.5]}
8... Rb8 {[%clk 0:02:59.1]} 9. Nf2 {[%clk 0:02:59]} 9... Nd7 {[%clk 0:02:57.9]}
10. h4 {[%clk 0:02:55.1]} 10... h5 {[%clk 0:02:53]} 11. g4 {[%clk 0:02:26.5]}
11... Nf6 {[%clk 0:02:53]} 12. f5 {[%clk 0:01:52.5]} 12... Ne5 {[%clk
0:02:47.2]} 13. gxh5 {[%clk 0:01:40.2]} 13... Nxh5 {[%clk 0:02:48.1]} 14. Nf3
{[%clk 0:01:18.8]} 14... e6 {[%clk 0:02:24.4]} 15. Bg5 {[%clk 0:00:55.5]} 15...
f6 {[%clk 0:02:23.8]} 16. Nxe5 {[%clk 0:00:49.1]} 16... dxe5 {[%clk 0:02:24.7]}
17. fxg6 {[%clk 0:00:47.3]} 17... Ng3 {[%clk 0:02:19]} 18. Be3 {[%clk
0:00:43.2]} 18... f5 {[%clk 0:02:14.1]} 19. Bg5 {[%clk 0:00:38.2]} 19... Bf6
{[%clk 0:02:03.2]} 20. Nh3 {[%clk 0:00:37.3]} 20... Nxf1 {[%clk 0:01:54.9]} 21.
Qh5 {[%clk 0:00:36.6]} 21... Qe7 {[%clk 0:01:50.4]} 22. Rxf1 {[%clk 0:00:32.6]}
22... f4 {[%clk 0:01:39.4]} 23. Nf2 {[%clk 0:00:29.8]} 23... Bxg5 {[%clk
0:00:47]} 24. hxg5 {[%clk 0:00:30.7]} 24... Qg7 {[%clk 0:00:47.6]} 25. Ng4
{[%clk 0:00:30.4]} 25... Qh8 {[%clk 0:00:48.2]} 26. Qh6 {[%clk 0:00:20.6]} 26...
Bd7 {[%clk 0:00:44.2]} 27. Rf3 {[%clk 0:00:20.4]} 27... Be8 {[%clk 0:00:36.5]}
28. Rh3 {[%clk 0:00:20.2]} 28... Qxh6 {[%clk 0:00:33]} 29. Rxh6 {[%clk
0:00:21.1]} 29... Kg7 {[%clk 0:00:32.4]} 30. Nxe5 {[%clk 0:00:21]} 30... Rh8
{[%clk 0:00:32.5]} 31. Rxh8 {[%clk 0:00:19.4]} 31... Kxh8 {[%clk 0:00:33.4]} 32.
Bh3 {[%clk 0:00:19.9]} 32... Kg7 {[%clk 0:00:31.7]} 33. Bxe6 {[%clk 0:00:20.2]}
33... Bxg6 {[%clk 0:00:32.3]} 34. Bf5 {[%clk 0:00:19.6]} 34... Bh5 {[%clk
0:00:27.8]} 35. Kf2 {[%clk 0:00:19.6]} 35... Bd1 {[%clk 0:00:26.9]} 36. c3
{[%clk 0:00:18.9]} 36... Rd8 {[%clk 0:00:26.5]} 37. Ke1 {[%clk 0:00:13.8]} 37...
Bc2 {[%clk 0:00:26.1]} 38. Kd2 {[%clk 0:00:14.3]} 38... Bb1 {[%clk 0:00:24.6]}
39. a3 {[%clk 0:00:14.3]} 39... f3 {[%clk 0:00:24.4]} 40. Nxf3 {[%clk
0:00:12.4]} 40... Bxd3 {[%clk 0:00:23.3]} 41. Ke3 {[%clk 0:00:12.5]} 41... Bc2
{[%clk 0:00:22.7]} 42. Ne5 {[%clk 0:00:12.8]} 42... b5 {[%clk 0:00:21]} 43. Nd7
{[%clk 0:00:12.1]} 43... c4 {[%clk 0:00:18.7]} 44. g6 {[%clk 0:00:12.3]} 44...
Ba4 {[%clk 0:00:16.5]} 45. Nc5 {[%clk 0:00:12.3]} 45... Bd1 {[%clk 0:00:15.5]}
46. Ne6+ {[%clk 0:00:12.6]} 1-0